bitfinex/quotes_BTCUSD_20250825
["timestamp","ask_amount","ask_price","bid_price","bid_amount"]
[1756125136325,0.80180951,111830.0,111820.0,0.00048016]
[1756125136941,0.79066592,111830.0,111820.0,0.00048016]
[1756125137374,0.79062592,111830.0,111820.0,0.00048016]
[1756125138326,0.8315584,111830.0,111820.0,0.00048016]
[1756125138726,0.84255131,111830.0,111820.0,1e-08]
[1756125138927,0.70829159,111830.0,111820.0,1e-08]
[1756125139186,5.59235559,111830.0,111820.0,1e-08]
[1756125139388,5.43883559,111830.0,111820.0,1e-08]
[1756125139590,5.59255559,111830.0,111820.0,1e-08]
[1756125140496,5.59251559,111830.0,111820.0,1e-08]
[1756125140703,0.86197159,111830.0,111820.0,0.01744903]
[1756125140916,0.78458604,111830.0,111820.0,0.01744903]
[1756125141123,0.76532576,111830.0,111820.0,0.01744903]
[1756125141340,0.42540576,111830.0,111820.0,0.00509001]
[1756125141692,0.61164576,111830.0,111820.0,0.00509001]
[1756125141908,0.76540576,111830.0,111820.0,0.00509001]
[1756125142134,0.76540576,111830.0,111820.0,0.01744903]
[1756125142384,0.61164576,111830.0,111820.0,0.01744903]
[1756125142596,0.75703909,111830.0,111820.0,0.01744903]
[1756125142799,0.6116255,111830.0,111820.0,0.01744903]
[1756125143043,0.7653455,111830.0,111820.0,0.01515378]
[1756125143471,0.76530354,111830.0,111820.0,0.01515378]
[1756125144183,0.76534354,111830.0,111820.0,0.01515378]
[1756125145908,0.73402747,111830.0,111820.0,0.01515378]
[1756125146113,0.76532174,111830.0,111820.0,0.01515378]
[1756125146954,0.76532215,111830.0,111820.0,0.01515378]
[1756125151728,0.76544215,111830.0,111820.0,0.01515378]
[1756125152022,0.76536215,111830.0,111820.0,0.01515378]
[1756125153438,0.78461705,111830.0,111820.0,0.01515378]
[1756125153662,0.63081705,111830.0,111820.0,0.01515378]
[1756125153840,0.78461705,111830.0,111820.0,0.01515378]
[1756125154444,0.17890687,111790.0,111780.0,0.445094]
[1756125154595,0.2039427,111790.0,111780.0,0.00198]
[1756125154797,0.2039427,111790.0,111780.0,0.15198]
[1756125154999,0.2039427,111790.0,111780.0,0.15509]
[1756125155641,0.17890687,111790.0,111780.0,0.15509]
[1756125155799,0.20399293,111790.0,111780.0,0.15523366]
[1756125156441,0.20399293,111790.0,111780.0,0.17268268]
[1756125158299,0.20399293,111790.0,111780.0,0.02268268]
[1756125158718,0.20399293,111790.0,111780.0,0.17268268]
[1756125159104,0.20399293,111790.0,111780.0,0.02268268]
[1756125159621,0.54399293,111790.0,111780.0,0.02268268]
[1756125159743,0.54399293,111790.0,111780.0,0.17268268]
[1756125160245,0.55027679,111790.0,111780.0,0.17268268]
[1756125160444,0.55027679,111790.0,111780.0,0.02268268]
[1756125160653,0.55027679,111790.0,111780.0,0.17268268]
[1756125161073,0.55029325,111790.0,111780.0,0.17268268]
[1756125161493,0.55029325,111790.0,111780.0,0.02268268]
[1756125161726,0.637178,111790.0,111780.0,0.17268268]
[1756125162242,0.63718503,111790.0,111780.0,0.17268268]
[1756125162681,0.63718503,111790.0,111780.0,0.02268268]
[1756125165451,0.60579162,111790.0,111780.0,0.02268268]
[1756125165679,0.63725271,111790.0,111780.0,0.02268268]
[1756125166813,0.63725271,111790.0,111780.0,0.01759268]
[1756125167519,0.63725271,111790.0,111780.0,0.02057268]
[1756125167764,0.63725271,111790.0,111780.0,0.01759268]
[1756125168203,0.63725271,111790.0,111780.0,0.02057268]
[1756125168445,0.79077271,111790.0,111780.0,0.02057268]
[1756125168659,0.79077271,111790.0,111780.0,0.02261268]
[1756125169783,0.79077271,111790.0,111780.0,0.01759268]
[1756125170236,0.79077271,111790.0,111780.0,0.02057268]
[1756125171200,0.81008953,111790.0,111780.0,0.01759268]
[1756125171456,0.81008953,111790.0,111780.0,0.0117644]
[1756125171658,0.51892288,111780.0,111770.0,0.0004]
[1756125171879,0.65658554,111780.0,111770.0,0.0004]
[1756125172090,0.81010554,111780.0,111770.0,0.0004]
[1756125173495,0.51897091,111750.0,111740.0,0.17042902]
[1756125173771,0.703952,111750.0,111740.0,0.17246902]
[1756125174218,0.703952,111750.0,111740.0,0.02246902]
[1756125174403,0.79083675,111750.0,111740.0,0.02246902]
[1756125174637,0.79083675,111750.0,111740.0,0.17246902]
[1756125174860,0.79078905,111750.0,111740.0,0.02261301]
[1756125175082,0.79078905,111750.0,111740.0,0.17261301]
[1756125175303,0.61213487,111750.0,111740.0,0.02261301]
[1756125175517,0.63725193,111750.0,111740.0,0.02261301]
[1756125175728,0.79077193,111750.0,111740.0,0.02261301]
[1756125176477,0.79077193,111750.0,111740.0,0.02057301]
[1756125176782,0.79077193,111750.0,111740.0,0.01759301]
[1756125177017,0.63725193,111750.0,111740.0,0.01963301]
[1756125177186,0.79077193,111750.0,111740.0,0.02261301]
[1756125177602,0.80141575,111750.0,111740.0,0.02261301]
[1756125177805,0.80141575,111750.0,111740.0,0.02057301]
[1756125178007,0.80141575,111750.0,111740.0,0.01759301]
[1756125178623,0.64785575,111750.0,111740.0,0.02057301]
[1756125178796,0.80141575,111750.0,111740.0,0.02057301]
[1756125179396,0.46141575,111750.0,111740.0,0.02057301]
[1756125179818,0.46141575,111750.0,111740.0,0.01759301]
[1756125180047,0.46137575,111750.0,111740.0,0.01759301]
[1756125180458,0.46137575,111750.0,111740.0,0.02057301]
[1756125180867,0.46137575,111750.0,111740.0,0.01759301]
[1756125181324,0.4613662,111750.0,111740.0,0.01759301]
[1756125181548,0.4613662,111750.0,111740.0,0.00014399]
[1756125182174,0.3078462,111750.0,111740.0,0.00014399]
[1756125182384,0.3078462,111750.0,111740.0,0.00516399]
[1756125182599,0.4614062,111750.0,111740.0,0.00516399]
[1756125183231,0.3078462,111750.0,111740.0,0.00516399]
[1756125183438,0.4614062,111750.0,111740.0,0.02261301]
[1756125183882,0.36611089,111750.0,111740.0,0.02261301]
[1756125184083,0.37446574,111750.0,111740.0,0.02261301]
[1756125184297,0.36819952,111750.0,111740.0,0.02261301]
[1756125184504,0.37446812,111750.0,111740.0,0.02261301]
[1756125184714,0.36820144,111750.0,111740.0,0.02261301]
[1756125185140,0.37446813,111750.0,111740.0,0.02261301]
[1756125185361,0.36820144,111750.0,111740.0,0.02261301]
[1756125185571,0.37446874,111750.0,111740.0,0.02261301]
[1756125185775,0.37446874,111750.0,111740.0,0.02190094]
[1756125186203,0.46135349,111750.0,111740.0,0.02190094]
[1756125186464,0.30779349,111750.0,111740.0,0.02190094]
[1756125186665,0.45508619,111750.0,111740.0,0.02190094]
[1756125187266,0.45509198,111750.0,111740.0,0.02190094]
[1756125189293,0.46136317,111750.0,111740.0,0.02190094]
[1756125190347,0.4613782,111750.0,111740.0,0.02190094]
[1756125190546,0.4616482,111750.0,111740.0,0.01744902]
[1756125190928,0.3080882,111750.0,111740.0,0.01744902]
[1756125191154,0.4616482,111750.0,111740.0,0.02048902]
[1756125191355,0.4616482,111750.0,111740.0,0.01744902]
[1756125192180,0.4618182,111750.0,111740.0,0.01744902]
[1756125192389,0.17900295,111730.0,111720.0,0.044448]
[1756125192601,0.44480523,111730.0,111720.0,0.044448]
[1756125192816,0.45108266,111730.0,111720.0,0.03498502]
[1756125193674,0.45110505,111730.0,111720.0,0.03498502]
[1756125193898,0.45110505,111730.0,111720.0,0.03194502]
[1756125194526,0.45110528,111730.0,111720.0,0.03194502]
[1756125194738,0.45110528,111730.0,111720.0,0.03700502]
[1756125194979,0.45110528,111730.0,111720.0,0.03498502]
[1756125195637,0.45110528,111730.0,111720.0,0.03194502]
[1756125196511,0.45110528,111730.0,111720.0,0.03700502]
[1756125196914,0.29727528,111730.0,111720.0,0.03700502]
[1756125197118,0.45083528,111730.0,111720.0,0.03700502]
[1756125198785,0.45110528,111730.0,111720.0,0.03700502]
[1756125199007,0.45083528,111730.0,111720.0,0.03700502]
[1756125199621,0.45103528,111730.0,111720.0,0.03700502]
[1756125200263,0.79130528,111730.0,111720.0,0.03700502]
[1756125200866,0.79130528,111730.0,111720.0,0.03498502]
[1756125201042,0.79122528,111730.0,111720.0,0.03700502]
[1756125201862,0.79095528,111730.0,111720.0,0.03700502]
[1756125202590,0.79122528,111730.0,111720.0,0.03700502]
[1756125203407,0.79128484,111730.0,111720.0,0.03700502]
[1756125203762,0.77805526,111730.0,111720.0,0.03700502]
[1756125203964,0.77778465,111730.0,111720.0,0.03700502]
[1756125204149,0.62410465,111730.0,111720.0,0.03700502]
[1756125204359,0.62410432,111730.0,111720.0,0.03700502]
[1756125204494,0.62437432,111730.0,111720.0,0.03498502]
[1756125204708,0.77813432,111730.0,111720.0,0.03498502]
[1756125204910,0.77809432,111730.0,111720.0,0.03498502]
[1756125205339,0.77809432,111730.0,111720.0,0.03194502]
[1756125206236,0.77782432,111730.0,111720.0,0.03700502]
[1756125209271,0.62410432,111730.0,111720.0,0.03700502]
[1756125209681,0.77770432,111730.0,111720.0,0.03700502]
[1756125210285,0.77797432,111730.0,111720.0,0.03700502]
[1756125211535,0.77793432,111730.0,111720.0,0.03700502]
[1756125213151,0.75487439,111730.0,111720.0,0.03700502]
[1756125213361,0.77793664,111730.0,111720.0,0.03700502]
[1756125213565,0.62437664,111730.0,111720.0,0.03700502]
[1756125213736,0.77793705,111730.0,111720.0,0.03700502]
[1756125214172,0.77766705,111730.0,111720.0,0.03700502]
[1756125214593,0.62410705,111730.0,111720.0,0.03700502]
[1756125214806,0.70401188,111730.0,111720.0,0.03700502]
[1756125215027,0.36515882,111730.0,111720.0,0.36826172]
[1756125215237,0.54416177,111730.0,111720.0,0.39293499]
[1756125215452,0.54416177,111730.0,111720.0,0.21391602]
[1756125218639,0.78487652,111730.0,111720.0,0.21189602]
[1756125218854,0.78487652,111730.0,111720.0,0.18194502]
[1756125219101,0.79117042,111730.0,111720.0,0.18194502]
[1756125219282,0.79117042,111730.0,111720.0,0.014496]
[1756125219893,0.79117042,111730.0,111720.0,0.03194502]
[1756125220157,0.79117042,111730.0,111720.0,0.014496]
[1756125220570,0.79117042,111730.0,111720.0,0.164496]
[1756125220724,0.79117042,111730.0,111720.0,0.18194502]
[1756125221589,0.79118269,111730.0,111720.0,0.03194502]
[1756125221797,0.79118269,111730.0,111720.0,0.18194502]
[1756125221997,0.79118269,111730.0,111720.0,0.03194502]
[1756125222148,0.79118269,111730.0,111720.0,0.18194502]
[1756125222349,0.63862269,111730.0,111720.0,0.20016502]
[1756125222555,0.79218269,111730.0,111720.0,0.19807502]
[1756125222996,0.79221464,111730.0,111720.0,0.19807502]
[1756125223196,0.79221464,111730.0,111720.0,0.19494502]
[1756125223516,0.77541627,111730.0,111720.0,0.19494502]
[1756125223833,0.7922146,111730.0,111720.0,0.19494502]
[1756125224402,0.7922146,111730.0,111720.0,0.04494502]
[1756125225015,0.7922146,111730.0,111720.0,0.19494502]
[1756125225856,0.7922146,111730.0,111720.0,0.04494502]
[1756125226054,0.7922146,111730.0,111720.0,0.19494502]
[1756125226235,0.79221377,111730.0,111720.0,0.19494502]
[1756125228050,0.79221377,111730.0,111720.0,0.19807502]
[1756125228948,0.79221377,111730.0,111720.0,0.04494502]
[1756125229571,0.79221404,111730.0,111720.0,0.04494502]
[1756125231826,0.63865404,111730.0,111720.0,0.04494502]
[1756125232056,0.79249404,111730.0,111720.0,0.04494502]
[1756125232691,0.7609977,111730.0,111720.0,0.04494502]
[1756125232892,0.79249362,111730.0,111720.0,0.04494502]
[1756125233309,0.77569579,111730.0,111720.0,0.04494502]
[1756125233523,0.79249372,111730.0,111720.0,0.04494502]
[1756125233701,0.79249332,111730.0,111720.0,0.04494502]
[1756125234932,0.7840942,111730.0,111720.0,0.04494502]
[1756125235135,0.79249282,111730.0,111720.0,0.04494502]
[1756125235551,0.79249282,111730.0,111720.0,0.027496]
[1756125235753,0.79266282,111730.0,111720.0,0.027496]
[1756125236183,0.79266317,111730.0,111720.0,0.027496]
[1756125238191,0.63882317,111730.0,111720.0,0.027496]
[1756125238410,0.81183987,111730.0,111720.0,0.027496]
[1756125238844,0.81171987,111730.0,111720.0,0.027496]
[1756125239053,0.79237317,111730.0,111720.0,0.027496]
[1756125240097,0.79237034,111730.0,111720.0,0.027496]
[1756125241172,0.81188449,111730.0,111720.0,0.027496]
[1756125241389,0.81163449,111730.0,111720.0,0.027496]
[1756125241627,0.79693383,111730.0,111720.0,0.027496]
[1756125241847,0.81162681,111730.0,111720.0,0.027496]
[1756125242314,0.81162611,111730.0,111720.0,0.027496]
[1756125242717,0.81118611,111730.0,111720.0,0.014496]
[1756125242928,0.65698611,111730.0,111720.0,0.014496]
[1756125243144,0.81214611,111730.0,111720.0,0.026496]
[1756125243384,0.83906511,111730.0,111720.0,0.026496]
[1756125244645,0.68490511,111730.0,111720.0,0.026496]
[1756125244857,0.83902511,111730.0,111720.0,0.026496]
[1756125245064,0.83902511,111730.0,111720.0,0.029626]
[1756125245275,0.81968096,111730.0,111720.0,0.029626]
[1756125246128,0.83901994,111730.0,111720.0,0.029626]
[1756125246338,0.83897994,111730.0,111720.0,0.029626]
[1756125246667,0.83889994,111730.0,111720.0,0.031716]
[1756125246893,0.83862994,111730.0,111720.0,0.031716]
[1756125247283,0.68462994,111730.0,111720.0,0.031716]
[1756125247493,0.68462994,111730.0,111720.0,0.04916502]
[1756125247702,0.79237196,111730.0,111720.0,0.04916502]
[1756125248131,0.35935092,111730.0,111720.0,0.04916502]
[1756125248335,0.20519092,111730.0,111720.0,0.04916502]
[1756125248573,0.20519092,111730.0,111720.0,0.19916502]
[1756125248574,0.33416295,111730.0,111720.0,0.19916502]
[1756125249830,0.67416295,111730.0,111720.0,0.19916502]
[1756125253452,0.77782875,111730.0,111720.0,0.19916502]
[1756125254078,0.77809875,111730.0,111720.0,0.19916502]
[1756125254362,0.7613177,111730.0,111720.0,0.19916502]
[1756125254571,0.78648856,111730.0,111720.0,0.04394502]
[1756125254991,0.78648856,111730.0,111720.0,0.04699502]
[1756125255628,0.78648856,111730.0,111720.0,0.04394502]
[1756125255841,0.78648856,111730.0,111720.0,0.04699502]
[1756125256268,0.78648856,111730.0,111720.0,0.04394502]
[1756125256515,0.79278162,111730.0,111720.0,0.04394502]
[1756125256961,0.79295162,111730.0,111720.0,0.026496]
[1756125257175,0.51901897,111720.0,111710.0,0.00091958]
[1756125257453,0.89264824,111720.0,111710.0,0.00088203]
[1756125257681,0.91198023,111720.0,111700.0,1e-08]
[1756125257892,0.75975975,111710.0,111700.0,0.00012882]
[1756125258132,0.51905102,111700.0,111690.0,0.0004]
[1756125258375,0.79151033,111700.0,111690.0,0.0004]
[1756125258646,0.79168033,111700.0,111690.0,0.0004]
[1756125258848,0.64907033,111700.0,111690.0,0.0004]
[1756125259056,0.84321321,111700.0,111690.0,0.0004]
[1756125260008,0.68941321,111700.0,111690.0,0.0004]
[1756125260190,0.84321321,111700.0,111690.0,0.0004]
[1756125260645,0.84338321,111700.0,111690.0,0.0004]
[1756125260850,0.83709003,111700.0,111690.0,0.0004]
[1756125261033,0.84433937,111700.0,111690.0,0.0064]
[1756125261454,0.84416937,111700.0,111690.0,0.0064]
[1756125261677,0.84416423,111700.0,111690.0,0.0064]
[1756125261886,0.84415836,111700.0,111690.0,0.0064]
[1756125262455,0.84415836,111700.0,111680.0,0.0114]
[1756125262456,0.51906706,111690.0,111680.0,0.0114]
[1756125262809,0.78510958,111690.0,111680.0,0.0114]
[1756125263036,0.63134958,111690.0,111680.0,0.01661]
[1756125263260,0.78483958,111690.0,111680.0,0.01661]
[1756125263462,0.78510958,111690.0,111680.0,0.01661]
[1756125263918,0.81203758,111690.0,111680.0,0.01661]
[1756125265050,0.81203758,111690.0,111680.0,0.01445]
[1756125265267,0.81335758,111690.0,111680.0,0.0134]
[1756125266637,0.65927758,111690.0,111680.0,0.01861]
[1756125266838,0.81316758,111690.0,111680.0,0.01861]
[1756125267444,0.8131407,111690.0,111680.0,0.01861]
[1756125268306,0.8134107,111690.0,111680.0,0.01861]
[1756125268895,0.8134107,111690.0,111680.0,0.01645]
[1756125269128,0.8131407,111690.0,111680.0,0.01861]
[1756125269298,0.8131407,111690.0,111680.0,0.01645]
[1756125269642,0.8134107,111690.0,111680.0,0.0134]
[1756125270320,0.8132507,111690.0,111680.0,0.0134]
[1756125270752,0.80490858,111690.0,111680.0,0.0134]
[1756125270938,0.65922796,111690.0,111680.0,0.0134]
[1756125271120,0.81322796,111690.0,111680.0,0.0134]
[1756125273502,0.81322796,111690.0,111680.0,0.01645]
[1756125274527,0.81322796,111690.0,111680.0,0.0134]
[1756125274916,0.81322796,111690.0,111680.0,0.01645]
[1756125275141,0.81279796,111690.0,111680.0,0.01861]
[1756125276750,0.81306796,111690.0,111680.0,0.01861]
[1756125277366,0.65895796,111690.0,111680.0,0.01861]
[1756125277524,0.78658996,111690.0,111680.0,0.01861]
[1756125278951,0.78650699,111690.0,111680.0,0.01861]
[1756125279148,0.77815058,111690.0,111680.0,0.01861]
[1756125279355,0.78650908,111690.0,111680.0,0.01861]
[1756125279814,0.78677908,111690.0,111680.0,0.01861]
[1756125280012,0.78677908,111690.0,111680.0,0.01645]
[1756125280258,0.78677908,111690.0,111680.0,0.0186]
[1756125280411,0.77815629,111690.0,111680.0,0.0186]
[1756125280622,0.78651853,111690.0,111680.0,0.0186]
[1756125281174,0.78651921,111690.0,111680.0,0.0186]
[1756125281380,0.78678921,111690.0,111680.0,0.0186]
[1756125281608,0.79306436,111690.0,111680.0,0.0134]
[1756125282630,0.79306436,111690.0,111680.0,0.01665]
[1756125283796,0.77633988,111690.0,111680.0,0.01665]
[1756125284027,0.79309508,111690.0,111680.0,0.0188]
[1756125284688,0.79282508,111690.0,111680.0,0.0188]
[1756125285583,0.79309508,111690.0,111680.0,0.0188]
[1756125286315,0.79282508,111690.0,111680.0,0.0188]
[1756125286754,0.79309508,111690.0,111680.0,0.0188]
[1756125287222,0.79313416,111690.0,111680.0,0.01665]
[1756125287439,0.81250383,111690.0,111680.0,0.0188]
[1756125287828,0.81250383,111690.0,111680.0,0.01665]
[1756125288262,0.81250383,111690.0,111680.0,0.0188]
[1756125288479,0.81250383,111690.0,111680.0,0.01665]
[1756125290037,0.81218383,111690.0,111680.0,0.0188]
[1756125290396,0.81228253,111690.0,111680.0,0.0188]
[1756125291399,0.81228253,111690.0,111680.0,0.01665]
[1756125293662,0.81228355,111690.0,111680.0,0.0134]
[1756125294900,0.83921155,111690.0,111680.0,0.0134]
[1756125295281,0.81625878,111690.0,111680.0,0.0134]
[1756125295494,0.83203793,111690.0,111680.0,0.0134]
[1756125295934,0.86357595,111690.0,111680.0,0.0134]
[1756125296329,0.83203793,111690.0,111680.0,0.0134]
[1756125296510,0.83834562,111690.0,111680.0,0.0134]
[1756125297396,0.83203793,111690.0,111680.0,0.0134]
[1756125297598,0.83203793,111690.0,111680.0,0.0114]
[1756125297817,0.83103793,111690.0,111680.0,0.0114]
[1756125297986,0.84575588,111690.0,111680.0,0.0114]
[1756125298193,0.84044819,111690.0,111680.0,0.0154]
[1756125298813,0.84144819,111690.0,111680.0,0.0184]
[1756125299456,0.84705283,111690.0,111680.0,0.0184]
[1756125299673,0.87859203,111690.0,111680.0,0.0184]
[1756125300447,0.87842203,111690.0,111680.0,0.0184]
[1756125300661,0.17909913,111670.0,111660.0,0.00365]
[1756125300876,0.17909913,111670.0,111660.0,0.0058]
[1756125300877,0.4514809,111670.0,111660.0,0.0058]
[1756125301499,0.49242756,111670.0,111660.0,0.0058]
[1756125301944,0.49242756,111670.0,111660.0,0.00628042]
[1756125302166,0.49442756,111670.0,111660.0,0.01128042]
[1756125302593,0.46749656,111670.0,111660.0,0.01128042]
[1756125303002,0.44463999,111670.0,111660.0,0.00913042]
[1756125303204,0.46774121,111670.0,111660.0,0.01128042]
[1756125303642,0.47764959,111670.0,111660.0,0.01128042]
[1756125303993,0.47764843,111670.0,111660.0,0.01128042]
[1756125304601,0.47764843,111670.0,111660.0,0.00913042]
[1756125304839,0.81764843,111670.0,111660.0,0.00588042]
[1756125305487,0.89387141,111670.0,111660.0,0.00588042]
[1756125305710,0.86410244,111670.0,111660.0,0.00588042]
[1756125306121,0.85008678,111670.0,111660.0,0.00588042]
[1756125306331,0.84970358,111670.0,111660.0,0.00588042]
[1756125306570,0.94412358,111670.0,111660.0,0.00588042]
[1756125306740,0.84970358,111670.0,111660.0,0.00588042]
[1756125307598,0.84970358,111670.0,111630.0,0.1504]
[1756125307599,0.17914725,111640.0,111630.0,0.1504]
[1756125307838,0.77658192,111640.0,111630.0,0.00259805]
[1756125308028,0.77658192,111640.0,111630.0,0.15259805]
[1756125308231,0.77658192,111640.0,111630.0,0.00584805]
[1756125308884,0.77685192,111640.0,111630.0,0.00584805]
[1756125309109,0.79153401,111640.0,111630.0,0.00584805]
[1756125309422,0.79060149,111640.0,111630.0,0.00584805]
[1756125309621,0.65176713,111640.0,111630.0,0.00044805]
[1756125309800,0.80552713,111640.0,111630.0,0.00044805]
[1756125310005,0.80752713,111640.0,111630.0,0.00044805]
[1756125310809,0.8374661,111640.0,111630.0,0.00044805]
[1756125311015,0.8376361,111640.0,111630.0,0.00044805]
[1756125311229,0.5191633,111630.0,111620.0,0.0004]
[1756125311442,0.86261029,111630.0,111620.0,0.0004]
[1756125311652,0.86278029,111630.0,111620.0,0.0004]
[1756125312087,0.89271926,111630.0,111620.0,0.0004]
[1756125312303,0.86278029,111630.0,111620.0,0.0004]
[1756125312534,0.88207421,111630.0,111620.0,0.0004]
[1756125312738,5.64251674,111630.0,111620.0,1e-08]
[1756125313600,0.51917935,111620.0,111610.0,1e-08]
[1756125313804,5.52219827,111620.0,111610.0,1e-08]
[1756125314024,0.82159324,111620.0,111610.0,1e-08]
[1756125314228,0.51919541,111610.0,111600.0,1e-08]
[1756125314454,0.88434022,111610.0,111600.0,1e-08]
[1756125314662,0.73893744,111610.0,111600.0,1e-08]
[1756125314878,0.72436073,111610.0,111600.0,1e-08]
[1756125315103,0.17922752,111590.0,111580.0,0.0104]
[1756125315338,0.4371237,111590.0,111580.0,0.0104]
[1756125315793,0.50502958,111590.0,111580.0,0.01253]
[1756125316008,0.35102958,111590.0,111580.0,0.01568]
[1756125316232,0.35075958,111590.0,111580.0,0.01568]
[1756125316454,0.4639677,111590.0,111580.0,0.01568]
[1756125316681,0.4369737,111590.0,111580.0,0.01568]
[1756125316912,0.29687891,111590.0,111580.0,0.01568]
[1756125317148,0.36411416,111590.0,111580.0,0.16792054]
[1756125317597,0.70411416,111590.0,111580.0,0.16568]
[1756125318513,0.37076664,111590.0,111580.0,0.46237261]
[1756125318737,0.03076664,111590.0,111580.0,0.46237261]
[1756125318962,0.01402521,111590.0,111580.0,0.46237261]
[1756125319187,0.01902521,111590.0,111580.0,0.46237261]
[1756125320108,0.02102521,111590.0,111580.0,0.46237261]
[1756125320341,0.20025273,111590.0,111580.0,0.18312902]
[1756125320562,0.19525273,111590.0,111580.0,0.16568]
[1756125320788,0.19725273,111590.0,111580.0,0.16568]
[1756125321015,0.2139308,111590.0,111580.0,0.16568]
[1756125321683,0.3680508,111590.0,111580.0,0.16568]
[1756125322386,0.36805642,111590.0,111580.0,0.16568]
[1756125322605,0.36805642,111590.0,111580.0,0.14568]
[1756125322811,0.36805642,111590.0,111580.0,0.14781]
[1756125323202,0.0327089,111590.0,111580.0,0.44898369]
[1756125323417,0.0307089,111590.0,111580.0,0.44450261]
[1756125323622,0.21193642,111590.0,111580.0,0.44450261]
[1756125323817,0.21193642,111590.0,111580.0,0.26525902]
[1756125324026,0.21193642,111590.0,111580.0,0.44450261]
[1756125324658,0.20993642,111590.0,111580.0,0.44765261]
[1756125324926,0.20993642,111590.0,111580.0,0.26840902]
[1756125325136,0.21193642,111590.0,111580.0,0.26840902]
[1756125326473,0.21193642,111590.0,111580.0,0.44765261]
[1756125326902,0.0327089,111590.0,111580.0,0.44765261]
[1756125327542,0.21193642,111590.0,111580.0,0.42236902]
[1756125327784,0.21193642,111590.0,111580.0,0.16840902]
[1756125328064,0.21193642,111590.0,111580.0,0.26840902]
[1756125328294,0.21193642,111590.0,111580.0,0.26525902]
[1756125328500,0.21402642,111590.0,111580.0,0.14568]
[1756125328708,0.17924359,111580.0,111570.0,0.24883]
[1756125328913,0.19595054,111580.0,111570.0,0.26840902]
[1756125329129,0.19595054,111580.0,111570.0,0.12272902]
[1756125329347,0.19595054,111580.0,111570.0,0.26840902]
[1756125329979,0.19595054,111580.0,111570.0,0.26888986]
[1756125330404,0.19804054,111580.0,111570.0,0.16573986]
[1756125330591,0.19804054,111580.0,111570.0,0.26573986]
[1756125330793,0.19595054,111580.0,111570.0,0.26888986]
[1756125331424,0.19595054,111580.0,111570.0,0.42308986]
[1756125331641,0.19804054,111580.0,111570.0,0.42308986]
[1756125331846,0.19804054,111580.0,111570.0,0.26573986]
[1756125332054,0.18133359,111580.0,111570.0,0.26573986]
[1756125332262,0.19805306,111580.0,111570.0,0.26573986]
[1756125332463,0.20005306,111580.0,111570.0,0.26888986]
[1756125332697,0.18333359,111580.0,111570.0,0.26888986]
[1756125332907,0.1979699,111580.0,111570.0,0.26888986]
[1756125333354,0.20792715,111580.0,111570.0,0.26888986]
[1756125334302,0.1979699,111580.0,111570.0,0.26888986]
[1756125334501,0.1999699,111580.0,111570.0,0.26888986]
[1756125335457,0.0347784,111580.0,111570.0,0.44814951]
[1756125335661,0.21402199,111580.0,111570.0,0.44814951]
[1756125335841,0.21402199,111580.0,111570.0,0.26888986]
[1756125336046,0.21402199,111580.0,111570.0,0.44814951]
[1756125336469,0.21402199,111580.0,111570.0,0.26675986]
[1756125336688,0.37023199,111580.0,111570.0,0.24616084]
[1756125337256,0.37335199,111580.0,111570.0,0.24616084]
[1756125338539,0.21402199,111580.0,111570.0,0.25144084]
[1756125339642,0.21402199,111580.0,111570.0,0.44814951]
[1756125339848,0.0347784,111580.0,111570.0,0.44814951]
[1756125340267,0.22242054,111580.0,111570.0,0.26888986]
[1756125341302,0.04317695,111580.0,111570.0,0.44814951]
[1756125341950,0.04317695,111580.0,111570.0,0.53503426]
[1756125341951,0.03482638,111580.0,111570.0,0.53503426]
[1756125342176,0.02080232,111580.0,111570.0,0.53503426]
[1756125343022,0.01680232,111580.0,111570.0,0.53503426]
[1756125343695,0.19604591,111580.0,111570.0,0.42300986]
[1756125343903,0.19804591,111580.0,111570.0,0.42300986]
[1756125344589,0.20014591,111580.0,111570.0,0.27417986]
[1756125345495,0.20014591,111580.0,111570.0,0.12005986]
[1756125345717,0.19814591,111580.0,111570.0,0.41989986]
[1756125345912,0.19604591,111580.0,111570.0,0.42309986]
[1756125346051,0.19604591,111580.0,111570.0,0.42409986]
[1756125346244,0.21007101,111580.0,111570.0,0.42409986]
[1756125346585,0.21217101,111580.0,111570.0,0.26460986]
[1756125346786,0.21217101,111580.0,111570.0,0.27296986]
[1756125346985,0.21417101,111580.0,111570.0,0.42164986]
[1756125347267,0.21417101,111580.0,111570.0,0.42484986]
[1756125347590,0.21728101,111580.0,111570.0,0.10248084]
[1756125347794,0.65257371,111580.0,111570.0,0.00248084]
[1756125348003,0.65887971,111580.0,111570.0,0.14816084]
[1756125348515,0.65889,111580.0,111570.0,0.14816084]
[1756125349736,0.81309,111580.0,111570.0,0.14816084]
[1756125350198,0.65889,111580.0,111570.0,0.14816084]
[1756125350431,0.81309,111580.0,111570.0,0.14816084]
[1756125351704,0.8130786,111580.0,111570.0,0.14816084]
[1756125351914,0.7990535,111580.0,111570.0,0.14816084]
[1756125352134,0.6448535,111580.0,111570.0,0.14816084]
[1756125352359,0.7990535,111580.0,111570.0,0.14816084]
[1756125353315,0.79064946,111580.0,111570.0,0.14816084]
[1756125354379,0.63644946,111580.0,111570.0,0.14816084]
[1756125354594,0.78418643,111580.0,111570.0,0.14816084]
[1756125355444,0.79821264,111580.0,111570.0,0.14816084]
[1756125357145,0.80451501,111580.0,111570.0,0.14816084]
[1756125357349,0.81291881,111580.0,111570.0,0.14816084]
[1756125357574,0.81291881,111580.0,111570.0,0.00248084]
[1756125357788,0.81291881,111580.0,111570.0,0.14816084]
[1756125358659,0.80451501,111580.0,111570.0,0.14816084]
[1756125359079,0.80435501,111580.0,111570.0,0.14816084]
[1756125361022,0.80435501,111580.0,111570.0,0.00248084]
[1756125361262,0.80435571,111580.0,111570.0,0.00248084]
[1756125361485,0.65887964,111580.0,111570.0,0.14816084]
[1756125361727,0.81276007,111580.0,111570.0,0.00248084]
[1756125361989,0.81276007,111580.0,111570.0,0.14816084]
[1756125362206,0.8127603,111580.0,111570.0,0.14816084]
[1756125363720,0.8127603,111580.0,111570.0,0.14716084]
[1756125363938,0.81075773,111580.0,111570.0,0.14616084]
[1756125364155,0.81075773,111580.0,111570.0,0.00048084]
[1756125364368,0.65687773,111580.0,111570.0,0.00048084]
[1756125364588,0.79677152,111580.0,111570.0,0.00048084]
[1756125365031,0.63974152,111580.0,111570.0,0.00048084]
[1756125365248,0.63133984,111580.0,111570.0,0.00248084]
[1756125365467,0.78525984,111580.0,111570.0,0.00248084]
[1756125365706,0.78725984,111580.0,111570.0,0.00048084]
[1756125365931,0.79036984,111580.0,111570.0,0.00048084]
[1756125366364,0.63333984,111580.0,111570.0,0.00248084]
[1756125366836,0.62703666,111580.0,111570.0,0.00248084]
[1756125367060,0.77937666,111580.0,111570.0,0.15136084]
[1756125367280,0.62493666,111580.0,111570.0,0.15136084]
[1756125367499,0.77937666,111580.0,111570.0,0.15136084]
[1756125367962,0.79550272,111580.0,111570.0,0.15136084]